[Event "Schack-SM 2024: Mastarklassen"]
[Site "Fortnox Arena, Hejaregatan 5, Vaxjo, Sweden"]
[Date "2024.07.02"]
[Round "4.3"]
[White "Liden, Tommy"]
[Black "Collett, Peter"]
[Result "0-1"]
[TimeControl "90 minutes for 40 moves + 30 minutes for the rest of the game + 30 seconds per move from move one."]
[BlackTitle "CM"]
[WhiteElo "2123"]
[BlackElo "2116"]

1. e4 {[%clk 01:30:58]} {[%emt 00:00:03]} e5 {[%clk 01:30:52]} {[%emt
00:00:08]} 2. Nf3 {[%clk 01:31:21]} {[%emt 00:00:07]} Nc6 {[%clk 01:31:13]}
{[%emt 00:00:09]} 3. Bc4 {[%clk 01:31:46]} {[%emt 00:00:05]} Bc5 {[%clk
01:31:34]} {[%emt 00:00:07]} 4. c3 {[%clk 01:32:10]} {[%emt 00:00:08]} Nf6
{[%clk 01:31:55]} {[%emt 00:00:09]} 5. d3 {[%clk 01:32:35]} {[%emt 00:00:05]}
a6 {[%clk 01:31:08]} {[%emt 00:01:17]} 6. a4 {[%clk 01:32:38]} {[%emt
00:00:27]} Ba7 {[%clk 01:27:54]} {[%emt 00:03:43]} 7. O-O {[%clk 01:30:19]}
{[%emt 00:02:49]} d6 {[%clk 01:26:03]} {[%emt 00:02:21]} 8. Re1 {[%clk
01:29:58]} {[%emt 00:00:51]} O-O {[%clk 01:25:20]} {[%emt 00:01:13]} 9. h3
{[%clk 01:30:15]} {[%emt 00:00:13]} h6 {[%clk 01:23:42]} {[%emt 00:02:09]} 10.
Nbd2 {[%clk 01:30:24]} {[%emt 00:00:20]} Re8 {[%clk 01:20:06]} {[%emt
00:04:07]} 11. b4 {[%clk 01:27:52]} {[%emt 00:03:02]} Be6 {[%clk 01:10:39]}
{[%emt 00:09:56]} 12. Bxe6 {[%clk 01:27:43]} {[%emt 00:00:40]} Rxe6 {[%clk
01:10:59]} {[%emt 00:00:10]} 13. b5 {[%clk 01:19:48]} {[%emt 00:08:25]} Ne7
{[%clk 00:58:00]} {[%emt 00:13:27]} 14. d4 {[%clk 01:16:55]} {[%emt 00:03:24]}
Ng6 {[%clk 00:57:16]} {[%emt 00:01:14]} 15. bxa6 {[%clk 01:04:55]} {[%emt
00:12:32]} bxa6 {[%clk 00:57:11]} {[%emt 00:00:33]} 16. d5 {[%clk 01:05:01]}
{[%emt 00:00:25]} Re8 {[%clk 00:57:09]} {[%emt 00:00:31]} 17. Nc4 {[%clk
01:05:07]} {[%emt 00:00:25]} Rf8 {[%clk 00:47:16]} {[%emt 00:10:23]} 18. Na5
{[%clk 01:01:41]} {[%emt 00:03:58]} Ne7 {[%clk 00:46:47]} {[%emt 00:00:57]} 19.
Ba3 {[%clk 01:00:02]} {[%emt 00:02:07]} Nd7 {[%clk 00:43:45]} {[%emt 00:03:31]}
20. Qd3 {[%clk 00:52:11]} {[%emt 00:08:22]} Bb6 {[%clk 00:27:38]} {[%emt
00:16:35]} 21. Bb4 {[%clk 00:50:33]} {[%emt 00:02:09]} f5 {[%clk 00:27:22]}
{[%emt 00:00:47]} 22. exf5 {[%clk 00:49:45]} {[%emt 00:01:19]} Nxf5 {[%clk
00:25:56]} {[%emt 00:01:54]} 23. Nc6 {[%clk 00:49:34]} {[%emt 00:00:42]} Qf6
{[%clk 00:24:14]} {[%emt 00:02:11]} 24. a5 {[%clk 00:49:00]} {[%emt 00:01:05]}
Bc5 {[%clk 00:22:28]} {[%emt 00:02:16]} 25. Re4 {[%clk 00:42:08]} {[%emt
00:07:23]} Ng3 {[%clk 00:18:51]} {[%emt 00:04:07]} 26. Rg4 {[%clk 00:24:15]}
{[%emt 00:18:23]} e4 {[%clk 00:18:32]} {[%emt 00:00:47]} 27. Qc2 {[%clk
00:23:50]} {[%emt 00:00:56]} exf3 {[%clk 00:13:26]} {[%emt 00:05:36]} 28. Rxg3
{[%clk 00:23:47]} {[%emt 00:00:33]} fxg2 {[%clk 00:12:58]} {[%emt 00:00:58]} 29.
Bxc5 {[%clk 00:23:42]} {[%emt 00:00:36]} Nxc5 {[%clk 00:12:54]} {[%emt
00:00:35]} 30. Rg6 {[%clk 00:16:19]} {[%emt 00:07:51]} Qf7 {[%clk 00:12:28]}
{[%emt 00:00:56]} 31. Rxg2 {[%clk 00:14:57]} {[%emt 00:01:53]} Rae8 {[%clk
00:12:11]} {[%emt 00:00:46]} 32. Rd1 {[%clk 00:11:47]} {[%emt 00:03:41]} Qh5
{[%clk 00:07:40]} {[%emt 00:05:00]} 33. Rg3 {[%clk 00:03:32]} {[%emt 00:08:45]}
Re2 {[%clk 00:07:10]} {[%emt 00:01:01]} 34. Rd2 {[%clk 00:02:02]} {[%emt
00:02:00]} Rfxf2 {[%clk 00:06:05]} {[%emt 00:01:35]} 35. Ne7+ {[%clk 00:01:42]}
{[%emt 00:00:50]} Kf7 {[%clk 00:05:14]} {[%emt 00:01:20]} 36. Rxe2 {[%clk
00:01:45]} {[%emt 00:00:27]} Rxe2 {[%clk 00:05:06]} {[%emt 00:00:38]} 37. Qf5+
{[%clk 00:01:04]} {[%emt 00:01:09]} Qxf5 {[%clk 00:04:55]} {[%emt 00:00:42]} 38.
Nxf5 {[%clk 00:01:32]} {[%emt 00:00:02]} Re5 {[%clk 00:03:18]} {[%emt
00:02:07]} 39. Rf3 {[%clk 00:01:05]} {[%emt 00:00:56]} Kg6 {[%clk 00:03:15]}
{[%emt 00:00:34]} 40. Ne3 {[%clk 00:00:43]} {[%emt 00:00:52]} Nb3 {[%clk
00:02:00]} {[%emt 00:01:46]} 41. Kf2 {[%clk 00:29:55]} {[%emt 00:01:17]} Nxa5
{[%clk 00:31:07]} {[%emt 00:01:23]} 42. Rf8 {[%clk 00:28:59]} {[%emt 00:01:26]}
Nb3 {[%clk 00:30:19]} {[%emt 00:01:19]} 43. Ra8 {[%clk 00:27:14]} {[%emt
00:02:15]} Nc5 {[%clk 00:30:25]} {[%emt 00:00:23]} 44. c4 {[%clk 00:26:01]}
{[%emt 00:01:43]} Kg5 {[%clk 00:29:54]} {[%emt 00:01:00]} 45. Ra7 {[%clk
00:25:13]} {[%emt 00:01:20]} Re7 {[%clk 00:29:56]} {[%emt 00:00:28]} 46. Kf3
{[%clk 00:23:43]} {[%emt 00:02:00]} Rf7+ {[%clk 00:28:54]} {[%emt 00:01:32]} 47.
Kg3 {[%clk 00:23:17]} {[%emt 00:00:53]} Ne4+ {[%clk 00:26:55]} {[%emt
00:02:31]} 48. Kg2 {[%clk 00:23:36]} {[%emt 00:00:10]} Kf4 {[%clk 00:24:42]}
{[%emt 00:02:43]} 49. Nc2 {[%clk 00:22:57]} {[%emt 00:01:08]} Ke5 {[%clk
00:24:37]} {[%emt 00:00:36]} 50. Nb4 {[%clk 00:22:50]} {[%emt 00:00:38]} Nc5
{[%clk 00:23:38]} {[%emt 00:01:28]} 51. Nxa6 {[%clk 00:22:00]} {[%emt
00:01:22]} Nxa6 {[%clk 00:23:04]} {[%emt 00:01:03]} 52. Rxa6 {[%clk 00:22:28]}
{[%emt 00:00:02]} Kd4 {[%clk 00:23:16]} {[%emt 00:00:19]} 53. Rc6 {[%clk
00:22:32]} {[%emt 00:00:25]} g5 {[%clk 00:23:17]} {[%emt 00:00:28]} 54. Kg3
{[%clk 00:21:59]} {[%emt 00:01:04]} h5 {[%clk 00:23:38]} {[%emt 00:00:08]} 55.
h4 {[%clk 00:22:07]} {[%emt 00:00:22]} g4 {[%clk 00:23:33]} {[%emt 00:00:36]}
56. Kg2 {[%clk 00:22:15]} {[%emt 00:00:22]} Re7 {[%clk 00:20:43]} {[%emt
00:03:19]} 57. Kf2 {[%clk 00:21:06]} {[%emt 00:01:39]} Ke4 {[%clk 00:20:48]}
{[%emt 00:00:25]} 58. Kg3 {[%clk 00:21:11]} {[%emt 00:00:25]} Rf7 {[%clk
00:20:27]} {[%emt 00:00:50]} 59. Kg2 {[%clk 00:21:27]} {[%emt 00:00:15]} Kf4
{[%clk 00:20:26]} {[%emt 00:00:31]} 60. Ra6 {[%clk 00:20:05]} {[%emt 00:01:51]}
Re7 {[%clk 00:20:11]} {[%emt 00:00:45]} 61. Ra2 {[%clk 00:17:33]} {[%emt
00:03:03]} Re4 {[%clk 00:19:34]} {[%emt 00:01:06]} 62. c5 {[%clk 00:11:55]}
{[%emt 00:06:09]} dxc5 {[%clk 00:17:42]} {[%emt 00:02:21]} 63. Ra7 {[%clk
00:12:22]} {[%emt 00:00:03]} Ke5 {[%clk 00:17:42]} {[%emt 00:00:28]} 64. Rxc7
{[%clk 00:12:37]} {[%emt 00:00:16]} Kxd5 {[%clk 00:18:04]} {[%emt 00:00:08]} 65.
Rd7+ {[%clk 00:12:14]} {[%emt 00:00:52]} Kc4 {[%clk 00:17:08]} {[%emt
00:01:26]} 66. Rh7 {[%clk 00:12:23]} {[%emt 00:00:21]} Re5 {[%clk 00:17:26]}
{[%emt 00:00:13]} 67. Kg3 {[%clk 00:12:37]} {[%emt 00:00:17]} Kd4 {[%clk
00:17:36]} {[%emt 00:00:20]} 68. Kf4 {[%clk 00:11:26]} {[%emt 00:01:40]} c4
{[%clk 00:17:24]} {[%emt 00:00:42]} 69. Rc7 {[%clk 00:11:09]} {[%emt 00:00:49]}
Rd5 {[%clk 00:17:17]} {[%emt 00:00:37]} 70. Ke5+ {[%clk 00:10:33]} {[%emt
00:01:52]} 0-1

[Event "Schack-SM 2024: Mastarklassen"]
[Site "Fortnox Arena, Hejaregatan 5, Vaxjo, Sweden"]
[Date "2024.07.02"]
[Round "4.4"]
[White "Muntean, Victor"]
[Black "Lindborg, Patrik"]
[Result "1-0"]
[TimeControl "90 minutes for 40 moves + 30 minutes for the rest of the game + 30 seconds per move from move one."]
[WhiteElo "2136"]
[BlackElo "2162"]

1. e4 {[%clk 01:30:58]} c5 {[%clk 01:30:58]} {[%emt 00:00:03]} 2. c3 {[%clk
01:31:22]} {[%emt 00:00:06]} d6 {[%clk 01:30:53]} {[%emt 00:00:34]} 3. d4
{[%clk 01:31:46]} {[%emt 00:00:07]} Nf6 {[%clk 01:31:16]} {[%emt 00:00:05]} 4.
Bd3 {[%clk 01:32:11]} {[%emt 00:00:07]} g6 {[%clk 01:31:39]} {[%emt 00:00:08]}
5. dxc5 {[%clk 01:32:32]} {[%emt 00:00:07]} dxc5 {[%clk 01:31:44]} {[%emt
00:00:27]} 6. e5 {[%clk 01:32:55]} {[%emt 00:00:06]} Nh5 {[%clk 01:31:27]}
{[%emt 00:00:47]} 7. h3 {[%clk 01:33:12]} {[%emt 00:00:13]} Nc6 {[%clk
01:15:50]} {[%emt 00:16:07]} 8. Nf3 {[%clk 01:33:25]} {[%emt 00:00:16]} Be6
{[%clk 01:05:59]} {[%emt 00:10:22]} 9. Qe2 {[%clk 01:29:28]} {[%emt 00:04:28]}
Qc7 {[%clk 01:01:27]} {[%emt 00:05:01]} 10. Be3 {[%clk 01:18:23]} {[%emt
00:11:34]} Rd8 {[%clk 00:49:13]} {[%emt 00:12:44]} 11. Na3 {[%clk 01:07:30]}
{[%emt 00:11:25]} Nxe5 {[%clk 00:45:48]} {[%emt 00:03:54]} 12. Nxe5 {[%clk
01:00:06]} {[%emt 00:07:55]} Qxe5 {[%clk 00:45:20]} {[%emt 00:00:56]} 13. Bb5+
{[%clk 01:00:26]} {[%emt 00:00:11]} Bd7 {[%clk 00:45:31]} {[%emt 00:00:19]} 14.
O-O-O {[%clk 01:00:39]} {[%emt 00:00:16]} a6 {[%clk 00:38:59]} {[%emt
00:07:04]} 15. Bxd7+ {[%clk 00:58:57]} {[%emt 00:02:11]} Rxd7 {[%clk 00:39:25]}
{[%emt 00:00:04]} 16. Rxd7 {[%clk 00:59:16]} {[%emt 00:00:11]} Kxd7 {[%clk
00:39:53]} {[%emt 00:00:02]} 17. Rd1+ {[%clk 00:59:38]} {[%emt 00:00:08]} Kc8
{[%clk 00:37:08]} {[%emt 00:03:16]} 18. Nc4 {[%clk 00:56:48]} {[%emt 00:03:19]}
Qe6 {[%clk 00:35:36]} {[%emt 00:02:02]} 19. Qd3 {[%clk 00:52:36]} {[%emt
00:04:42]} Bg7 {[%clk 00:34:16]} {[%emt 00:01:51]} 20. Bxc5 {[%clk 00:51:08]}
{[%emt 00:01:58]} Nf4 {[%clk 00:27:23]} {[%emt 00:07:24]} 21. Nb6+ {[%clk
00:46:43]} {[%emt 00:04:54]} Kb8 {[%clk 00:20:19]} {[%emt 00:07:35]} 22. Qf3
{[%clk 00:43:43]} {[%emt 00:03:29]} Ne2+ {[%clk 00:06:56]} {[%emt 00:13:52]} 23.
Kc2 {[%clk 00:43:41]} {[%emt 00:00:32]} Nxc3 {[%clk 00:06:26]} {[%emt
00:01:00]} 24. Rd7 {[%clk 00:40:04]} {[%emt 00:04:08]} Qe4+ {[%clk 00:05:41]}
{[%emt 00:01:15]} 25. Qxe4 {[%clk 00:30:05]} {[%emt 00:10:29]} Nxe4 {[%clk
00:06:08]} {[%emt 00:00:03]} 26. Bxe7 {[%clk 00:30:25]} {[%emt 00:00:13]} Ka7
{[%clk 00:06:26]} {[%emt 00:00:10]} 27. Nc4 {[%clk 00:28:23]} {[%emt 00:02:32]}
Rc8 {[%clk 00:06:06]} {[%emt 00:00:50]} 28. b3 {[%clk 00:28:19]} {[%emt
00:00:34]} Bf8 {[%clk 00:05:03]} {[%emt 00:01:31]} 29. f3 {[%clk 00:26:57]}
{[%emt 00:01:53]} Bxe7 {[%clk 00:02:50]} {[%emt 00:02:43]} 30. Rxe7 {[%clk
00:25:41]} {[%emt 00:01:46]} Nd6 {[%clk 00:02:59]} {[%emt 00:00:22]} 31. Kd3
{[%clk 00:25:57]} {[%emt 00:00:15]} Rd8 {[%clk 00:02:57]} {[%emt 00:00:32]} 32.
Nxd6 {[%clk 00:25:59]} {[%emt 00:00:27]} Rxd6+ {[%clk 00:03:26]} {[%emt
00:00:02]} 33. Ke3 {[%clk 00:26:00]} {[%emt 00:00:27]} Rf6 {[%clk 00:03:34]}
{[%emt 00:00:23]} 34. f4 {[%clk 00:25:14]} {[%emt 00:01:15]} h5 {[%clk
00:03:52]} {[%emt 00:00:12]} 35. g4 {[%clk 00:25:18]} {[%emt 00:00:28]} hxg4
{[%clk 00:04:20]} {[%emt 00:00:01]} 36. hxg4 {[%clk 00:25:42]} {[%emt
00:00:06]} a5 {[%clk 00:02:40]} {[%emt 00:02:10]} 37. Ke4 {[%clk 00:22:41]}
{[%emt 00:03:31]} a4 {[%clk 00:03:08]} {[%emt 00:00:03]} 38. bxa4 {[%clk
00:23:00]} {[%emt 00:00:10]} Ra6 {[%clk 00:03:18]} {[%emt 00:00:20]} 39. Rxf7
{[%clk 00:23:24]} {[%emt 00:00:06]} Rxa4+ {[%clk 00:03:43]} {[%emt 00:00:05]}
40. Ke5 {[%clk 00:23:40]} {[%emt 00:00:13]} g5 {[%clk 00:03:47]} {[%emt
00:00:28]} 41. fxg5 {[%clk 00:23:33]} {[%emt 00:00:37]} Rxg4 {[%clk 00:03:45]}
{[%emt 00:00:31]} 42. Kf6 {[%clk 00:23:23]} {[%emt 00:00:40]} Ra4 {[%clk
00:03:45]} {[%emt 00:00:30]} 43. Re7 {[%clk 00:19:43]} {[%emt 00:04:11]} Rxa2
{[%clk 00:04:04]} {[%emt 00:00:11]} 44. Re5 {[%clk 00:20:04]} {[%emt 00:00:09]}
Rc2 {[%clk 00:30:05]} {[%emt 00:04:27]} 45. g6 {[%clk 00:49:29]} {[%emt
00:01:06]} Ka6 {[%clk 00:30:13]} {[%emt 00:00:22]} 46. g7 {[%clk 00:48:31]}
{[%emt 00:01:27]} Rc8 {[%clk 00:30:36]} {[%emt 00:00:08]} 47. Rg5 {[%clk
00:47:51]} {[%emt 00:01:10]} Rg8 {[%clk 00:27:47]} {[%emt 00:03:19]} 48. Kf7
{[%clk 00:48:07]} {[%emt 00:00:14]} Rc8 {[%clk 00:27:54]} {[%emt 00:00:22]} 49.
g8=Q {[%clk 00:48:20]} {[%emt 00:00:17]} Rxg8 {[%clk 00:28:16]} {[%emt
00:00:10]} 50. Kxg8 {[%clk 00:48:31]} {[%emt 00:00:19]} b5 {[%clk 00:28:35]}
{[%emt 00:00:10]} 51. Kf7 {[%clk 00:48:55]} {[%emt 00:00:06]} Ka5 {[%clk
00:28:04]} {[%emt 00:01:02]} 52. Ke6 {[%clk 00:49:17]} {[%emt 00:00:07]} Ka4
{[%clk 00:27:27]} {[%emt 00:01:08]} 53. Kd5 {[%clk 00:49:40]} {[%emt 00:00:06]}
1-0

[Event "Schack-SM 2024: Mastarklassen"]
[Site "Fortnox Arena, Hejaregatan 5, Vaxjo, Sweden"]
[Date "2024.07.02"]
[Round "4.5"]
[White "Joensson, Jacob"]
[Black "Sundin, Emanuel"]
[Result "1-0"]
[TimeControl "90 minutes for 40 moves + 30 minutes for the rest of the game + 30 seconds per move from move one."]
[WhiteElo "2068"]
[BlackElo "2165"]

1. d4 {[%clk 01:30:57]} {[%emt 00:00:03]} Nf6 {[%clk 01:29:19]} {[%emt
00:01:41]} 2. c4 {[%clk 01:31:22]} {[%emt 00:00:04]} e6 {[%clk 01:29:40]}
{[%emt 00:00:09]} 3. Bf4 {[%clk 01:31:48]} {[%emt 00:00:04]} Bb4+ {[%clk
01:28:34]} {[%emt 00:01:37]} 4. Nd2 {[%clk 01:32:12]} {[%emt 00:00:05]} Nh5
{[%clk 01:27:49]} {[%emt 00:01:14]} 5. Be3 {[%clk 01:32:31]} {[%emt 00:00:13]}
O-O {[%clk 01:27:12]} {[%emt 00:01:07]} 6. g3 {[%clk 01:32:46]} {[%emt
00:00:14]} f5 {[%clk 01:27:08]} {[%emt 00:00:34]} 7. Nh3 {[%clk 01:32:44]}
{[%emt 00:00:33]} Nf6 {[%clk 01:25:47]} {[%emt 00:01:50]} 8. a3 {[%clk
01:28:07]} {[%emt 00:05:07]} Be7 {[%clk 01:25:50]} {[%emt 00:00:28]} 9. Nf3
{[%clk 01:26:22]} {[%emt 00:02:15]} b6 {[%clk 01:17:59]} {[%emt 00:08:21]} 10.
Bg2 {[%clk 01:23:26]} {[%emt 00:03:27]} Bb7 {[%clk 01:18:14]} {[%emt 00:00:15]}
11. d5 {[%clk 01:23:23]} {[%emt 00:00:33]} Ng4 {[%clk 01:07:29]} {[%emt
00:11:14]} 12. Bd4 {[%clk 01:21:35]} {[%emt 00:02:19]} Bf6 {[%clk 01:04:18]}
{[%emt 00:03:41]} 13. O-O {[%clk 01:13:20]} {[%emt 00:08:46]} e5 {[%clk
01:02:34]} {[%emt 00:02:13]} 14. Bc3 {[%clk 01:13:38]} {[%emt 00:00:18]} d6
{[%clk 01:01:27]} {[%emt 00:01:31]} 15. e4 {[%clk 01:06:57]} {[%emt 00:07:11]}
Bc8 {[%clk 00:51:44]} {[%emt 00:10:13]} 16. Nd2 {[%clk 01:03:48]} {[%emt
00:03:38]} f4 {[%clk 00:44:57]} {[%emt 00:07:17]} 17. b4 {[%clk 00:45:30]}
{[%emt 00:18:48]} g5 {[%clk 00:41:37]} {[%emt 00:03:50]} 18. c5 {[%clk
00:44:11]} {[%emt 00:01:50]} bxc5 {[%clk 00:36:29]} {[%emt 00:05:38]} 19. bxc5
{[%clk 00:44:34]} {[%emt 00:00:06]} Nh6 {[%clk 00:36:30]} {[%emt 00:00:28]} 20.
gxf4 {[%clk 00:41:42]} {[%emt 00:03:23]} gxf4 {[%clk 00:35:59]} {[%emt
00:01:00]} 21. cxd6 {[%clk 00:38:41]} {[%emt 00:03:31]} cxd6 {[%clk 00:36:20]}
{[%emt 00:00:09]} 22. f3 {[%clk 00:38:40]} {[%emt 00:00:31]} Ba6 {[%clk
00:33:49]} {[%emt 00:03:01]} 23. Bb4 {[%clk 00:27:45]} {[%emt 00:11:25]} Bxf1
{[%clk 00:30:00]} {[%emt 00:04:19]} 24. Bxf1 {[%clk 00:28:05]} {[%emt
00:00:10]} Nf7 {[%clk 00:27:58]} {[%emt 00:02:32]} 25. Kh1 {[%clk 00:20:00]}
{[%emt 00:08:35]} a5 {[%clk 00:23:34]} {[%emt 00:04:54]} 26. Bc3 {[%clk
00:20:18]} {[%emt 00:00:12]} Nd7 {[%clk 00:23:09]} {[%emt 00:00:56]} 27. Bb5
{[%clk 00:18:34]} {[%emt 00:02:14]} Nc5 {[%clk 00:21:32]} {[%emt 00:02:07]} 28.
a4 {[%clk 00:18:15]} {[%emt 00:00:50]} Kh8 {[%clk 00:20:33]} {[%emt 00:01:28]}
29. Nc4 {[%clk 00:18:02]} {[%emt 00:00:43]} Bh4 {[%clk 00:17:51]} {[%emt
00:03:10]} 30. Nxf4 {[%clk 00:17:22]} {[%emt 00:01:12]} Bf6 {[%clk 00:07:02]}
{[%emt 00:11:18]} 31. Nh5 {[%clk 00:12:37]} {[%emt 00:05:14]} Rg8 {[%clk
00:04:44]} {[%emt 00:02:49]} 32. Ng3 {[%clk 00:11:52]} {[%emt 00:01:14]} Rg6
{[%clk 00:04:26]} {[%emt 00:00:49]} 33. Nf5 {[%clk 00:11:20]} {[%emt 00:01:02]}
Ra7 {[%clk 00:03:09]} {[%emt 00:01:47]} 34. Qe1 {[%clk 00:10:11]} {[%emt
00:01:39]} Nb3 {[%clk 00:01:57]} {[%emt 00:01:43]} 35. Qe3 {[%clk 00:10:03]}
{[%emt 00:00:37]} Rc7 {[%clk 00:00:33]} {[%emt 00:01:53]} 36. Rg1 {[%clk
00:10:04]} {[%emt 00:00:29]} Qc8 {[%clk 00:00:34]} {[%emt 00:00:30]} 37. Rxg6
{[%clk 00:08:50]} {[%emt 00:01:46]} hxg6 {[%clk 00:01:03]} 38. Nfxd6 {[%clk
00:08:57]} {[%emt 00:00:22]} Nxd6 {[%clk 00:00:40]} {[%emt 00:00:53]} 39. Nxd6
{[%clk 00:09:21]} {[%emt 00:00:07]} Qh3 {[%clk 00:00:33]} {[%emt 00:00:37]} 40.
Ne8 {[%clk 00:09:02]} {[%emt 00:00:48]} Rf7 {[%clk 00:00:32]} {[%emt 00:00:31]}
41. Nxf6 {[%clk 00:09:01]} {[%emt 00:00:33]} Nd4 {[%clk 00:29:56]} {[%emt
00:01:05]} 42. Be2 {[%clk 00:35:24]} {[%emt 00:04:06]} Rxf6 {[%clk 00:26:41]}
{[%emt 00:03:46]} 43. Bxd4 {[%clk 00:32:58]} {[%emt 00:02:57]} exd4 {[%clk
00:26:52]} {[%emt 00:00:18]} 44. Qxd4 {[%clk 00:33:21]} {[%emt 00:00:07]} Qh4
{[%clk 00:26:51]} {[%emt 00:00:31]} 45. Kg2 {[%clk 00:31:53]} {[%emt 00:01:58]}
Kh7 {[%clk 00:25:03]} {[%emt 00:02:18]} 46. d6 {[%clk 00:30:30]} {[%emt
00:01:54]} Qg5+ {[%clk 00:11:35]} {[%emt 00:13:57]} 47. Kf1 {[%clk 00:30:11]}
{[%emt 00:00:49]} Rf8 {[%clk 00:10:44]} {[%emt 00:01:22]} 48. d7 {[%clk
00:24:52]} {[%emt 00:05:50]} Qc1+ {[%clk 00:11:07]} {[%emt 00:00:06]} 49. Kf2
{[%clk 00:24:02]} {[%emt 00:01:21]} Qc7 {[%clk 00:11:24]} {[%emt 00:00:11]} 50.
e5 {[%clk 00:24:12]} {[%emt 00:00:21]} g5 {[%clk 00:11:37]} {[%emt 00:00:17]}
51. h4 {[%clk 00:21:14]} {[%emt 00:03:28]} g4 {[%clk 00:04:15]} {[%emt
00:07:52]} 52. Bd3+ {[%clk 00:21:22]} {[%emt 00:00:22]} Kh6 {[%clk 00:04:00]}
{[%emt 00:00:46]} 53. Qe3+ {[%clk 00:21:45]} {[%emt 00:00:06]} Kg7 {[%clk
00:04:10]} {[%emt 00:00:20]} 54. Qg5+ {[%clk 00:22:09]} {[%emt 00:00:07]} Kf7
{[%clk 00:04:22]} {[%emt 00:00:17]} 55. Qf6+ {[%clk 00:22:34]} {[%emt
00:00:05]} Kg8 {[%clk 00:04:46]} {[%emt 00:00:07]} 56. Qg6+ {[%clk 00:23:00]}
{[%emt 00:00:03]} Kh8 {[%clk 00:05:13]} {[%emt 00:00:03]} 57. Qh7# {[%clk
00:23:26]} {[%emt 00:00:04]} 1-0